fUSD/lending_fUSD_20250225
["ID","MTS","AMOUNT","RATE_DAILY","PERIOD"]
[354385107,1740468714493,-500.0,0.00055616,40]
[354385108,1740468714503,-500.0,0.00055616,120]
[354385109,1740468714513,-1437.76,0.00055616,120]
[354385110,1740468714522,-238.42151031,0.00055616,120]
[354385111,1740468714532,-500.0,0.00055616,120]
[354385112,1740468714542,-500.0,0.00055616,120]
[354385113,1740468714555,-1132.0,0.00055616,120]
[354385114,1740468714567,-500.0,0.00055616,120]
[354385115,1740468714578,-1768.38,0.00055616,120]
[354385116,1740468714589,-872.14,0.00055616,120]
[354385117,1740468714599,-500.0,0.00055616,120]
[354385118,1740468714609,-1405.94,0.00055616,120]
[354385119,1740468714620,-505.68793401,0.00055616,120]
[354385120,1740468714630,-500.0,0.00055616,120]
[354385121,1740468714640,-500.0,0.00055616,120]
[354385122,1740468714650,-500.0,0.00055616,120]
[354385123,1740468714660,-500.0,0.00055616,120]
[354385124,1740468714670,-745.77,0.00055616,120]
[354385125,1740468714680,-1000.0,0.00055616,120]
[354385126,1740468714690,-500.0,0.00055616,120]
[354385127,1740468714701,-820.25,0.00055616,120]
[354385128,1740468714711,-500.0,0.00055616,120]
[354385129,1740468714721,-778.18,0.00055616,120]
[354385130,1740468714731,-500.0,0.00055616,120]
[354385131,1740468714741,-500.0,0.00055616,120]
[354385132,1740468714751,-618.03,0.00055616,120]
[354385133,1740468714762,-517.64412371,0.00055616,120]
[354385134,1740468714772,-538.57,0.00055616,120]
[354385135,1740468714948,-813.45,0.00055616,120]
[354385136,1740468714963,-500.0,0.00055616,120]
[354385137,1740468714974,-659.87,0.00055616,120]
[354385138,1740468714984,-500.0,0.00055616,120]
[354385139,1740468714993,-500.0,0.00055616,120]
[354385140,1740468715004,-542.24,0.00055616,120]
[354385141,1740468715014,-1379.17,0.00055616,120]
[354385142,1740468715024,-572.09144818,0.00055616,120]
[354385143,1740468715034,-500.0,0.00055616,120]
[354385144,1740468715044,-500.0,0.00055616,120]
[354385145,1740468715058,-500.0,0.00055616,120]
[354385146,1740468715069,-1790.29,0.00055616,120]
[354385147,1740468715083,-500.0,0.00055616,120]
[354385148,1740468715094,-500.0,0.00055616,120]
[354385149,1740468715105,-817.76,0.00055616,120]
[354385150,1740468715115,-1159.57,0.00055616,120]
[354385151,1740468715128,-500.0,0.00055616,120]
[354385152,1740468715139,-500.0,0.00055616,120]
[354385153,1740468715148,-500.0,0.00055616,120]
[354385154,1740468715158,-500.0,0.00055616,120]
[354385155,1740468715168,-500.0,0.00055616,120]
[354385156,1740468715178,-672.91,0.00055616,120]
[354385157,1740468715188,-515.11684092,0.00055616,120]
[354385158,1740468715199,-1035.42,0.00055616,120]
[354385159,1740468715209,-1067.5,0.00055616,120]
[354385160,1740468715221,-500.0,0.00055616,120]
[354385161,1740468715231,-911.5,0.00055616,120]
[354385162,1740468715241,-782.71,0.00055616,120]
[354385163,1740468715251,-500.0,0.00055616,120]
[354385164,1740468715262,-500.0,0.00055616,120]
[354385165,1740468715272,-500.0,0.00055616,120]
[354385166,1740468715289,-692.81,0.00055616,120]
[354385167,1740468715302,-500.0,0.00055616,120]
[354385168,1740468715313,-1417.28,0.00055616,120]
[354385169,1740468715323,-231.688463,0.00055616,120]
[354385170,1740468715333,-4827.95,0.00055616,120]
[354385171,1740468715343,-500.0,0.00055616,120]
[354385172,1740468715353,-907.1,0.00055616,120]
[354385173,1740468715364,-1025.54,0.00055616,120]
[354385174,1740468715375,-500.0,0.00055616,120]
[354385175,1740468715399,-500.0,0.00055616,120]
[354385176,1740468715412,-500.0,0.00055616,120]
[354385177,1740468715423,-972.52,0.00055616,120]
[354385178,1740468715434,-500.0,0.00055616,120]
[354385179,1740468715445,-1147.6,0.00055616,120]
[354385180,1740468715455,-954.71,0.00055616,120]
[354385181,1740468715465,-500.0,0.00055616,120]
[354385182,1740468715475,-927.58,0.00055616,120]
[354385183,1740468715485,-440.36395766,0.00055616,120]
[354385184,1740468715494,-508.53,0.00055616,120]
[354385185,1740468715507,-500.0,0.00055616,120]
[354385186,1740468715518,-500.0,0.00055616,120]
[354385187,1740468715528,-1526.64,0.00055616,120]
[354385188,1740468715537,-500.0,0.00055616,120]
[354385189,1740468715560,-500.0,0.00055616,120]
[354385190,1740468715572,-500.0,0.00055616,120]
[354385191,1740468715582,-1242.39,0.00055616,120]
[354385192,1740468715593,-500.0,0.00055616,120]
[354385193,1740468715603,-871.61,0.00055616,120]
[354385194,1740468715614,-549.43,0.00055616,120]
[354385195,1740468715624,-1600.52,0.00055616,120]
[354385196,1740468715634,-514.02887772,0.00055616,120]
[354385197,1740468715645,-500.0,0.00055616,120]
[354385198,1740468715655,-1142.54,0.00055616,120]
[354385199,1740468715666,-500.0,0.00055616,120]
[354385200,1740468715676,-552.98,0.00055616,120]
[354385201,1740468715686,-1401.97,0.00055616,120]
[354385202,1740468715697,-1245.93,0.00055616,120]
[354385203,1740468715707,-500.0,0.00055616,120]
[354385204,1740468715718,-509.4878606,0.00055616,120]
[354385205,1740468715729,-1200.36,0.00055616,120]
[354385206,1740468715739,-500.0,0.00055616,120]
[354385207,1740468715750,-500.0,0.00055616,30]
[354385208,1740468715760,-500.0,0.00055616,120]
[354385209,1740468715770,-504.05,0.00055616,120]
[354385210,1740468715780,-971.46,0.00055616,120]
[354385211,1740468715789,-500.0,0.00055616,120]
[354385212,1740468715799,-514.77518019,0.00055616,120]
[354385213,1740468715810,-500.0,0.00055616,120]
[354385214,1740468715819,-500.0,0.00055616,120]
[354385215,1740468715829,-500.0,0.00055616,120]
[354385216,1740468715839,-500.0,0.00055616,120]
[354385217,1740468715848,-500.0,0.00055616,120]
[354385218,1740468715859,-599.74,0.00055616,120]
[354385219,1740468715869,-500.0,0.00055616,120]
[354385220,1740468715878,-515.75,0.00055616,120]
[354385221,1740468715888,-357.04889863,0.00055616,120]
[354385222,1740468715898,-1301.53,0.00055616,120]
[354385223,1740468715908,-500.0,0.00055616,120]
[354385224,1740468715917,-500.0,0.00055616,120]
[354385225,1740468715927,-500.0,0.00055616,120]
[354385226,1740468715941,-500.0,0.00055616,120]
[354385227,1740468715950,-1377.93,0.00055616,120]
[354385228,1740468715960,-500.0,0.00055616,120]
[354385229,1740468715970,-519.39,0.00055616,120]
[354385230,1740468715980,-623.61,0.00055616,120]
[354385231,1740468715990,-1303.38,0.00055616,120]
[354385232,1740468715999,-500.0,0.00055616,120]
[354385233,1740468716009,-500.0,0.00055616,120]
[354385234,1740468716018,-500.0,0.00055616,120]
[354385235,1740468716028,-500.0,0.00055616,120]
[354385236,1740468716038,-573.14454039,0.00055616,120]
[354385237,1740468716047,-500.0,0.00055616,120]
[354385238,1740468716060,-585.47,0.00055616,120]
[354385239,1740468716070,-552.97,0.00055616,120]
[354385240,1740468716083,-1349.4,0.00055616,120]
[354385241,1740468716094,-500.0,0.00055616,120]
[354385242,1740468716104,-741.84,0.00055616,120]
[354385243,1740468716114,-500.0,0.00055616,120]
[354385244,1740468716128,-500.0,0.00055616,120]
[354385245,1740468716138,-700.58,0.00055616,2]
[354385246,1740468716148,-2351.09,0.00055616,2]
[354385247,1740468716158,-514.55416843,0.00055616,120]
[354385248,1740468716169,-500.0,0.00055616,120]
[354385249,1740468716178,-500.0,0.00055616,120]
[354385250,1740468716188,-168.81835281,0.00055616,120]
[354385251,1740468716197,-994.98,0.00055616,30]
[354385252,1740468716209,-500.0,0.00055616,120]
[354385253,1740468716219,-500.0,0.00055616,120]
[354385254,1740468716228,-500.0,0.00055616,120]
[354385255,1740468716238,-500.0,0.00055616,120]
[354385256,1740468716248,-500.0,0.00055616,120]
[354385257,1740468716257,-715.33,0.00055616,120]
[354385258,1740468716267,-1439.89,0.00055616,120]
[354385259,1740468716277,-500.0,0.00055616,120]
[354385260,1740468716286,-943.25,0.00055616,120]
[354385261,1740468716296,-500.0,0.00055616,120]
[354385262,1740468716308,-657.52,0.00055616,120]
[354385263,1740468716318,-500.0,0.00055616,120]
[354385264,1740468716327,-500.0,0.00055616,120]
[354385265,1740468716337,-523.79,0.00055616,120]
[354385266,1740468716346,-500.0,0.00055616,120]
[354385267,1740468716356,-500.0,0.00055616,120]
[354385268,1740468716366,-1664.27,0.00055616,120]
[354385269,1740468716375,-943.64,0.00055616,120]
[354385270,1740468716385,-516.4,0.00055616,120]
[354385271,1740468716394,-712.11,0.00055616,120]
[354385272,1740468716404,-500.0,0.00055616,120]
[354385273,1740468716414,-500.0,0.00055616,120]
[354385274,1740468716424,-500.0,0.00055616,120]
[354385275,1740468716434,-500.0,0.00055616,120]
[354385276,1740468716443,-500.0,0.00055616,120]
[354385277,1740468716453,-888.35,0.00055616,120]
[354385278,1740468716463,-500.0,0.00055616,120]
[354385279,1740468716473,-500.0,0.00055616,120]
[354385280,1740468716483,-538.53465501,0.00055616,120]
[354385281,1740468716492,-522.22,0.00055616,120]
[354385282,1740468716502,-1032.87,0.00055616,120]
[354385283,1740468716512,-500.0,0.00055616,120]
[354385284,1740468716522,-500.0,0.00055616,120]
[354385285,1740468716531,-1438.9,0.00055616,120]
[354385286,1740468716541,-570.8,0.00055616,120]
[354385287,1740468716553,-500.0,0.00055616,120]
[354385288,1740468716563,-815.66,0.00055616,120]
[354385289,1740468716573,-500.0,0.00055616,120]
[354385290,1740468716583,-500.0,0.00055616,120]
[354385291,1740468716593,-500.0,0.00055616,120]
[354385292,1740468716603,-1275.45,0.00055616,120]
[354385293,1740468716613,-500.0,0.00055616,120]
[354385294,1740468716623,-3980.64,0.00055616,120]
[354385295,1740468716634,-500.0,0.00055616,120]
[354385296,1740468716644,-500.0,0.00055616,120]
[354385297,1740468716654,-500.0,0.00055616,120]
[354385298,1740468716665,-1130.49,0.00055616,120]
[354385299,1740468716675,-1206.75,0.00055616,120]
[354385300,1740468716686,-500.0,0.00055616,120]
[354385301,1740468716695,-1535.83,0.00055616,120]
[354385302,1740468716706,-1768.01,0.00055616,120]
[354385303,1740468716716,-500.0,0.00055616,120]
[354385304,1740468716726,-1200.87,0.00055616,120]
[354385305,1740468716735,-500.0,0.00055616,120]
[354385306,1740468716744,-500.0,0.00055616,120]
[354385307,1740468716754,-664.86,0.00055616,120]
[354385308,1740468716763,-696.61,0.00055616,120]
[354385309,1740468716772,-1522.97,0.00055616,120]
[354385310,1740468716782,-500.0,0.00055616,120]
[354385311,1740468716791,-500.0,0.00055616,120]
[354385312,1740468716803,-483.78785505,0.00055616,120]
[354385313,1740468716813,-500.0,0.00055616,120]
[354385314,1740468716822,-500.0,0.00055616,120]
[354385315,1740468716832,-1319.72,0.00055616,120]
[354385316,1740468716842,-1393.05,0.00055616,120]
[354385317,1740468716852,-894.01,0.00055616,120]
[354385318,1740468716862,-986.38,0.00055616,120]
[354385319,1740468716871,-1886.6,0.00055616,120]
[354385320,1740468716881,-1184.76,0.00055616,120]
[354385321,1740468716890,-262.1180756,0.00055616,120]
[354385322,1740468716899,-500.0,0.00055616,120]
[354385323,1740468716909,-488.48310354,0.00055616,120]
[354385324,1740468716919,-2022.2,0.00055616,120]
[354385325,1740468716928,-1099.29,0.00055616,120]
[354385326,1740468716938,-1444.43,0.00055616,120]
[354385327,1740468716949,-500.0,0.00055616,120]
[354385328,1740468716960,-512.51,0.00055616,120]
[354385329,1740468716970,-517.98,0.00055616,120]
[354385330,1740468716980,-1030.18,0.00055616,120]
[354385331,1740468716989,-500.0,0.00055616,120]
[354385332,1740468716999,-971.18,0.00055616,120]
[354385333,1740468717009,-563.97954987,0.00055616,120]
[354385334,1740468717019,-1142.3,0.00055616,120]
[354385335,1740468717029,-1194.04,0.00055616,120]
[354385336,1740468717039,-500.0,0.00055616,120]
[354385337,1740468717049,-500.0,0.00055616,120]
[354385338,1740468717060,-500.0,0.00055616,120]
[354385339,1740468717070,-1748.82,0.00055616,120]
[354385340,1740468717084,-679.54,0.00055616,120]
[354385341,1740468717093,-1309.17,0.00055616,120]
[354385342,1740468717103,-500.0,0.00055616,120]
[354385343,1740468717113,-587.74,0.00055616,120]
[354385344,1740468717125,-500.0,0.00055616,120]
[354385345,1740468717137,-778.7,0.00055616,120]
[354385346,1740468717146,-733.26,0.00055616,120]
[354385347,1740468717156,-730.67,0.00055616,120]
[354385348,1740468717166,-598.78,0.00055616,120]
[354385349,1740468717175,-1016.76,0.00055616,120]
[354385350,1740468717185,-343.780273,0.00055616,120]
[354385351,1740468717195,-789.0,0.00055616,120]
[354385352,1740468717204,-500.0,0.00055616,120]
[354385353,1740468717215,-500.0,0.00055616,120]
[354385354,1740468717224,-500.0,0.00055616,120]
[354385355,1740468717233,-500.0,0.00055616,120]
[354385356,1740468717243,-1145.46,0.00055616,120]
[354385357,1740468717252,-500.0,0.00055616,120]
[354385358,1740468717261,-4362.55,0.00055616,120]
[354385359,1740468717271,-500.0,0.00055616,120]
[354385360,1740468717281,-500.0,0.00055616,120]
[354385361,1740468717291,-631.53,0.00055616,120]
[354385362,1740468717303,-500.0,0.00055616,120]
[354385363,1740468717313,-3017.39,0.00055616,120]
[354385364,1740468717323,-500.0,0.00055616,120]
[354385365,1740468717333,-969.91,0.00055616,120]
[354385366,1740468717342,-759.14,0.00055616,120]
[354385367,1740468717351,-500.0,0.00055616,120]
[354385368,1740468717360,-500.0,0.00055616,120]
[354385369,1740468717369,-500.0,0.00055616,120]
[354385370,1740468717379,-2220.86,0.00055616,120]
[354385371,1740468717389,-318.751745,0.00055616,120]
[354385372,1740468717398,-1553.03,0.00055616,120]
[354385373,1740468717407,-505.40731864,0.00055616,120]
[354385374,1740468717417,-722.9,0.00055616,120]
[354385375,1740468717427,-500.0,0.00055616,120]
[354385376,1740468717437,-856.37,0.00055616,120]
[354385377,1740468717446,-910.26,0.00055616,120]
[354385378,1740468717456,-500.0,0.00055616,120]
[354385379,1740468717466,-500.0,0.00055616,120]
[354385380,1740468717475,-887.73,0.00055616,120]
[354385381,1740468717485,-1830.19,0.00055616,120]
[354385382,1740468717495,-1715.31,0.00055616,120]
[354385383,1740468717504,-500.0,0.00055616,120]
[354385384,1740468717514,-500.0,0.00055616,120]
[354385385,1740468717524,-500.0,0.00055616,120]
[354385386,1740468717535,-500.0,0.00055616,120]
[354385387,1740468717545,-686.54,0.00055616,120]
[354385388,1740468717557,-500.0,0.00055616,120]
[354385389,1740468717567,-2424.1,0.00055616,120]
[354385390,1740468717577,-500.0,0.00055616,120]
[354385391,1740468717587,-500.0,0.00055616,120]
[354385392,1740468717597,-1521.55,0.00055616,120]
[354385393,1740468717606,-2919.48,0.00055616,120]
[354385394,1740468717615,-823.47,0.00055616,120]
[354385395,1740468717625,-519.84724504,0.00055616,120]
[354385396,1740468717634,-1738.48,0.00055616,120]
[354385397,1740468717644,-915.34,0.00055616,120]
[354385398,1740468717654,-2711.99,0.00055616,120]
[354385399,1740468717664,-500.0,0.00055616,120]
[354385400,1740468717673,-576.99,0.00055616,120]
[354385401,1740468717683,-500.0,0.00055616,120]
[354385402,1740468717692,-500.0,0.00055616,120]
[354385403,1740468717701,-2110.84,0.00055616,120]
[354385404,1740468717710,-637.74,0.00055616,120]
[354385405,1740468717719,-2315.41,0.00055616,120]
[354385406,1740468717729,-3875.43,0.00055616,7]
[354385407,1740468717738,-500.0,0.00055616,120]
[354385408,1740468717747,-1035.71,0.00055616,120]
[354385409,1740468717757,-500.0,0.00055616,120]
[354385410,1740468717766,-500.0,0.00055616,60]
[354385411,1740468717775,-750.25,0.00055616,120]
[354385412,1740468717785,-500.0,0.00055616,120]
[354385413,1740468717794,-500.0,0.00055616,120]
[354385414,1740468717807,-3264.88,0.00055616,120]
[354385415,1740468717816,-500.0,0.00055616,120]
[354385416,1740468717825,-2938.93,0.00055616,120]
[354385417,1740468717834,-500.0,0.00055616,120]
[354385418,1740468717843,-1210.86,0.00055616,120]
[354385419,1740468717852,-503.75,0.00055616,120]
[354385420,1740468717861,-534.95,0.00055616,120]
[354385421,1740468717871,-703.65,0.00055616,120]
[354385422,1740468717880,-2458.44,0.00055616,120]
[354385423,1740468717889,-500.0,0.00055616,120]
[354385424,1740468717898,-1556.62,0.00055616,120]
[354385425,1740468717908,-500.0,0.00055616,120]
[354385426,1740468717918,-2761.69,0.00055616,120]
[354385427,1740468717928,-689.83,0.00055616,120]
[354385428,1740468717938,-585.51,0.00055616,120]
[354385429,1740468717947,-2649.21,0.00055616,120]
[354385430,1740468717956,-1493.71,0.00055616,120]
[354385431,1740468717965,-1981.89,0.00055616,120]
[354385432,1740468717975,-2553.02,0.00055616,120]
[354385433,1740468717985,-3211.4,0.00055616,120]
[354385434,1740468717994,-524.81943585,0.00055616,120]
[354385435,1740468718003,-1352.07,0.00055616,120]
[354385436,1740468718012,-2909.1,0.00055616,120]
[354385437,1740468718021,-1667.75,0.00055616,120]
[354385438,1740468718031,-4349.64,0.00055616,120]
[354385439,1740468718040,-1519.71,0.00055616,120]
[354385440,1740468718050,-752.34,0.00055616,120]
[354385441,1740468718061,-864.91,0.00055616,120]
[354385442,1740468718071,-1290.66,0.00055616,120]
[354385443,1740468718086,-500.0,0.00055616,120]
[354385444,1740468718096,-630.05750452,0.00055616,120]
[354385445,1740468718105,-910.81,0.00055616,5]
[354385446,1740468718115,-2901.27,0.00055616,120]
[354385447,1740468718129,-186.73155406,0.00055616,120]
[354385448,1740468718138,-1857.67,0.00055616,120]
[354385449,1740468718148,-500.0,0.00055616,120]
[354385450,1740468718157,-2986.93,0.00055616,120]
[354385451,1740468718167,-2864.49,0.00055616,120]
[354385452,1740468718176,-500.0,0.00055616,120]
[354385453,1740468718186,-500.0,0.00055616,120]
[354385454,1740468718195,-2305.88,0.00055616,120]
[354385455,1740468718206,-2121.17,0.00055616,120]
[354385456,1740468718216,-500.0,0.00055616,120]
[354385457,1740468718225,-2477.45,0.00055616,120]
[354385458,1740468718235,-500.0,0.00055616,120]
[354385459,1740468718244,-1752.42,0.00055616,120]
[354385460,1740468718254,-538.64,0.00055616,120]
[354385461,1740468718263,-1452.1,0.00055616,120]
[354385462,1740468718273,-1822.96,0.00055616,120]
[354385463,1740468718282,-1851.24,0.00055616,120]
[354385464,1740468718291,-500.0,0.00055616,120]
[354385465,1740468718301,-607.87,0.00055616,120]
[354385466,1740468718313,-500.0,0.00055616,120]
[354385467,1740468718322,-500.0,0.00055616,120]
[354385468,1740468718332,-2265.65,0.00055616,120]
[354385469,1740468718341,-3192.11,0.00055616,120]
[354385470,1740468718351,-3707.86,0.00055616,120]
[354385471,1740468718360,-1530.35,0.00055616,120]
[354385472,1740468718370,-1470.7,0.00055616,120]
[354385473,1740468718380,-1400.72,0.00055616,120]
[354385474,1740468718389,-500.0,0.00055616,120]
[354385475,1740468718399,-813.46,0.00055616,120]
[354385476,1740468718408,-1028.29,0.00055616,120]
[354385477,1740468718417,-505.5774417,0.00055616,120]
[354385478,1740468718427,-2337.12,0.00055616,120]
[354385479,1740468718437,-640.5,0.00055616,120]
[354385480,1740468718446,-500.0,0.00055616,120]
[354385481,1740468718455,-3333.6,0.00055616,120]
[354385482,1740468718465,-3975.46,0.00055616,120]
[354385483,1740468718475,-500.0,0.00055616,120]
[354385484,1740468718485,-5873.49,0.00055616,120]
[354385485,1740468718494,-1036.75,0.00055616,120]
[354385486,1740468718503,-500.0,0.00055616,120]
[354385487,1740468718513,-613.18,0.00055616,120]
[354385488,1740468718523,-2745.61,0.00055616,120]
[354385489,1740468718532,-562.09,0.00055616,120]
[354385490,1740468718542,-707.46,0.00055616,120]
[354385491,1740468718552,-4540.04,0.00055616,120]
[354385492,1740468718563,-500.0,0.00055616,120]
[354385493,1740468718573,-1113.18,0.00055616,120]
[354385494,1740468718583,-155.12618177,0.00055616,120]
[354385495,1740468718592,-2703.16,0.00055616,120]
[354385496,1740468718601,-3052.04,0.00055616,120]
[354385497,1740468718611,-522.41,0.00055616,120]
[354385498,1740468718622,-500.0,0.00055616,120]
[354385499,1740468718632,-551.64,0.00055616,120]
[354385500,1740468718642,-500.0,0.00055616,120]
[354385501,1740468718652,-1552.51,0.00055616,120]
[354385502,1740468718883,-1000.0,0.00055616,60]
[354385503,1740468718894,-2971.45,0.00055616,90]
[354385504,1740468718905,-1701.44,0.00055616,120]
[354385505,1740468718915,-504.43890751,0.00055616,120]
[354385506,1740468718926,-553.8,0.00055616,120]
[354385507,1740468718936,-2581.17,0.00055616,120]
[354385508,1740468718946,-1833.0,0.00055616,120]
[354385509,1740468718957,-503.31707881,0.00055616,120]
[354385510,1740468718968,-500.0,0.00055616,120]
[354385511,1740468718978,-514.58845005,0.00055616,120]
[354385512,1740468718988,-500.0,0.00055616,120]
[354385513,1740468718998,-3435.08,0.00055616,120]
[354385514,1740468719008,-500.0,0.00055616,120]
[354385515,1740468719018,-500.0,0.00055616,120]
[354385516,1740468719028,-500.0,0.00055616,120]
[354385517,1740468719039,-500.0,0.00055616,120]
[354385518,1740468719049,-522.17,0.00055616,120]
[354385519,1740468719062,-500.0,0.00055616,120]
[354385520,1740468719072,-857.98,0.00055616,120]
[354385521,1740468719086,-3140.0,0.00055616,120]
[354385522,1740468719096,-3227.53,0.00055616,120]
[354385523,1740468719107,-500.0,0.00055616,120]
[354385524,1740468719119,-500.0,0.00055616,120]
[354385525,1740468719130,-500.0,0.00055616,120]
[354385526,1740468719142,-500.0,0.00055616,120]
[354385527,1740468719153,-775.19,0.00055616,120]
[354385528,1740468719164,-872.89,0.00055616,120]
[354385529,1740468719174,-500.0,0.00055616,120]
[354385530,1740468719185,-2538.08,0.00055616,120]
[354385531,1740468719197,-500.0,0.00055616,120]
[354385532,1740468719208,-500.0,0.00055616,120]
[354385533,1740468719222,-2940.18,0.00055616,120]
[354385534,1740468719235,-3583.88,0.00055616,120]
[354385535,1740468719247,-253.72694458,0.00055616,120]
[354385536,1740468719262,-2559.65,0.00055616,120]
[354385537,1740468719277,-500.0,0.00055616,120]
[354385538,1740468719289,-1118.81,0.00055616,120]
[354385539,1740468719302,-688.16,0.00055616,120]
[354385540,1740468719324,-500.0,0.00055616,120]
[354385541,1740468719337,-3329.23,0.00055616,120]
[354385542,1740468719349,-568.38,0.00055616,120]
[354385543,1740468719361,-1907.44,0.00055616,120]
[354385544,1740468719373,-3487.12,0.00055616,120]
[354385545,1740468719385,-2138.38,0.00055616,120]
[354385546,1740468719398,-998.34,0.00055616,120]
[354385547,1740468719410,-1469.89,0.00055616,120]
[354385548,1740468719422,-880.12,0.00055616,120]
[354385549,1740468719434,-500.0,0.00055616,120]
[354385550,1740468719447,-1941.03,0.00055616,120]
[354385551,1740468719457,-1969.46,0.00055616,120]
[354385552,1740468719471,-3496.1,0.00055616,120]
[354385553,1740468719482,-2020.04,0.00055616,120]
[354385554,1740468719492,-500.0,0.00055616,120]
[354385555,1740468719503,-1704.77,0.00055616,120]
[354385556,1740468719514,-500.0,0.00055616,120]
[354385557,1740468719525,-3000.0,0.00055616,120]
[354385558,1740468719535,-1814.1,0.00055616,120]
[354385559,1740468719545,-500.0,0.00055616,120]
[354385560,1740468719556,-3162.2,0.00055616,120]
[354385561,1740468719570,-508.04793528,0.00055616,120]
[354385562,1740468719580,-561.29,0.00055616,120]
[354385563,1740468719591,-558.43,0.00055616,120]
[354385564,1740468719601,-500.0,0.00055616,2]
[354385565,1740468719611,-4214.34,0.00055616,120]
[354385566,1740468719622,-500.0,0.00055616,120]
[354385567,1740468719632,-1793.36,0.00055616,120]
[354385568,1740468719642,-1107.87,0.00055616,120]
[354385569,1740468719653,-1453.67,0.00055616,30]
[354385570,1740468719663,-505.48116408,0.00055616,120]
[354385571,1740468719673,-1291.79,0.00055616,120]
[354385572,1740468719683,-2203.33,0.00055616,120]
[354385573,1740468719693,-500.0,0.00055616,120]
[354385574,1740468719703,-2186.37,0.00055616,120]
[354385575,1740468719712,-2099.71,0.00055616,120]
[354385576,1740468719722,-1541.65,0.00055616,120]
[354385577,1740468719732,-500.0,0.00055616,2]
[354385578,1740468719742,-500.0,0.00055616,120]
[354385579,1740468719753,-500.0,0.00055616,120]
[354385580,1740468719763,-500.0,0.00055616,120]
[354385581,1740468719774,-500.0,0.00055616,120]
[354385582,1740468719784,-2864.64,0.00055616,120]
[354385583,1740468719795,-500.0,0.00055616,120]
[354385584,1740468719807,-500.0,0.00055616,120]
[354385585,1740468719817,-1803.36,0.00055616,120]
[354385586,1740468719827,-500.0,0.00055616,120]
[354385587,1740468719837,-1506.59,0.00055616,120]
[354385588,1740468719847,-1568.57,0.00055616,120]
[354385589,1740468719857,-980.59,0.00055616,120]
[354385590,1740468719867,-1792.49,0.00055616,120]
[354385591,1740468719877,-668.51,0.00055616,120]
[354385592,1740468719887,-503.23890257,0.00055616,120]
[354385593,1740468719897,-1620.72,0.00055616,120]
[354385594,1740468719907,-500.0,0.00055616,120]
[354385595,1740468719916,-500.0,0.00055616,120]
[354385596,1740468719926,-659.49,0.00055616,120]
[354385597,1740468719936,-500.0,0.00055616,120]
[354385598,1740468719946,-849.91,0.00055616,120]
[354385599,1740468719955,-500.0,0.00055616,120]
[354385600,1740468719965,-3340.49,0.00055616,120]
[354385601,1740468719975,-500.0,0.00055616,120]
[354385602,1740468719986,-150.979023,0.00055616,120]
[354385603,1740468719995,-680.52,0.00055616,120]
[354385604,1740468720005,-500.0,0.00055616,120]
[354385605,1740468720014,-500.0,0.00055616,120]
[354385606,1740468720024,-1680.11,0.00055616,120]